Cogmind - Beta 11.1 @@@ ROGUE MODE // 2022.04.29 @ 18:07:33 Player: Olga Result: Destroyed by Y-54 Guardian with Flak Gun Performance ------------- Evolutions (4) 2000 Regions Visited (11) 2200 Robots Destroyed (22) 110 Value Destroyed (373) 373 Prototype IDs (11) 220 Alien Tech Used (0) 0 Bonus (311) 311 TOTAL SCORE: 5214 Bonus ------- High Alert Combat Kills 11 Met Data Miner 300 Cogmind --------- Core Integrity 0/850 Matter 300/300 Energy 100/100 System Corruption 0% Temperature Cool (7) Movement Flying (40) Location -6/Lower Caves Parts ------- > --- POWER (1) -------- (None) > --- PROPULSION (4) --- Nuclear Pulse Thruster > --- UTILITY (8) ------ System Shield System Shield > --- WEAPON (2) ------- (None) > --- INVENTORY (5) ---- Improved Terrain Scan Processor Advanced ECM Suite Cloaking Device Cloaking Device Peak State ------------ > --- POWER ------------ Light Deuterium Engine > --- PROPULSION ------- Cesium-ion Thruster Cesium-ion Thruster Xenon Bombardment Thruster Improved Cesium-ion Thruster > --- UTILITY ---------- Structural Scanner Seismic Detector Improved Weapon Shielding Improved Light Armor Plating Hacking Suite System Shield > --- WEAPON ----------- Autogun Gauss Cannon > --- INVENTORY -------- Weight Redist. System Improved Terrain Scan Processor Heavy Assault Rifle Battle Rifle Heavy Hammer [Rating: 39] Favorites ----------- Power Light Deuterium Engine Engine Light Deuterium Engine Power Core Light Nuclear Core Propulsion Cesium-ion Thruster Leg Aluminum Leg Wheel Armored Huge Wheel Hover Unit Improved Gravmag System Flight Unit Cesium-ion Thruster Utility System Shield Device Structural Scanner Storage Small Storage Unit Hackware System Shield Protection Improved Light Armor Plating Weapon Heavy Assault Rifle Energy Gun EM Pulse Gun Ballistic Gun Heavy Assault Rifle Ballistic Cannon Flak Cannon Impact Weapon Heavy Hammer Build | -11 -10 -9 -8 -7 -7 -7 -7 -6 -6 -6 -6 ------- Run | Scr Mat Mat Mat Fac Low Low Dat Pro Fac Low Low Slots Evolved 8 | . . 2 2 2 . . . . 2 . . Power . | . . . . . . . . . . . . Propulsion 2 | . . 2 . . . . . . . . . Utility 6 | . . . 2 2 . . . . 2 . . Weapon . | . . . . . . . . . . . . Parts Attached 53 | . 9 3 20 2 2 2 . 2 9 1 3 Power 6 | . 1 1 2 . 1 . . . 1 . . Engine 4 | . 1 . 1 . 1 . . . 1 . . Core 2 | . . 1 1 . . . . . . . . Reactor . | . . . . . . . . . . . . Propulsion 20 | . 2 2 9 1 . 1 . 1 2 . 2 Treads . | . . . . . . . . . . . . Leg . | . . . . . . . . . . . . Wheel 1 | . . . . . . . . . 1 . . Hover 1 | . . . . . . . . . 1 . . Flight 18 | . 2 2 9 1 . 1 . 1 . . 2 Utility 13 | . 2 . 4 1 1 . . . 4 1 . Device 6 | . 2 . . 1 . . . . 3 . . Storage . | . . . . . . . . . . . . Processor . | . . . . . . . . . . . . Hackware 4 | . . . 2 . . . . . 1 1 . Protection 3 | . . . 2 . 1 . . . . . . Artifact . | . . . . . . . . . . . . Weapon 14 | . 4 . 5 . . 1 . 1 2 . 1 Energy Gun . | . . . . . . . . . . . . Energy Cannon . | . . . . . . . . . . . . Ballistic Gun 10 | . 4 . 3 . . 1 . . 1 . 1 Ballistic Cannon 2 | . . . 1 . . . . 1 . . . Launcher . | . . . . . . . . . . . . Special Weapon . | . . . . . . . . . . . . Impact Weapon 2 | . . . 1 . . . . . 1 . . Slashing Weapon . | . . . . . . . . . . . . Piercing Weapon . | . . . . . . . . . . . . Special Melee Weapon . | . . . . . . . . . . . . Unidentified Prototypes 1 | . . . . 1 . . . . . . . Corrupted Parts 1 | . 1 . . . . . . . . . . System Corruption 1 | . 1 . . . . . . . . . . Parts Lost 27 | . 1 1 9 . . 2 . 3 . 2 9 Power 3 | . 1 . 1 . . . . . . . 1 Propulsion 15 | . . 1 7 . . 2 . 3 . . 2 Utility 7 | . . . 1 . . . . . . 2 4 Weapon 2 | . . . . . . . . . . . 2 Highest Loss Streak 9 | . 1 1 5 . . 2 . 3 . 2 9 To Critical Strikes . | . . . . . . . . . . . . Average Slot Usage (%) 74 | . 82 92 84 86 99 92 84 53 52 68 30 Engine 5 | . 12 . 1 7 7 7 7 3 2 6 . Core 1 | . . 11 7 . . . . . . . . Leg 3 | . 22 . . . . . . . . . . Hover 1 | . . . . . . . . . 5 6 1 Flight 14 | . 5 37 27 30 30 26 23 10 . . . Device 13 | . 1 22 16 9 15 15 15 15 18 21 4 Storage 1 | . 12 . . . . . . . . . . Hackware 13 | . . . 9 15 15 15 15 15 18 26 19 Protection 4 | . . . 6 7 14 15 15 6 . . . Energy Gun 2 | . 17 . . . . . . . . . . Ballistic Gun 8 | . 8 22 15 15 15 11 7 2 . . . Impact Weapon 1 | . . . . . . . . . 5 6 3 Naked Turns . | . . . . . . . . . . . . Heaviest Build 22 | 12 12 9 13 14 18 18 15 22 16 16 14 Greatest Support 28 | 20 20 16 20 21 21 21 16 22 28 16 16 Greatest Overweight (x) 2 | . . . 2 . . . . . . . . Average Overweight (x) . | . . . . . . . . . . . . Largest Inventory Capacity 8 | . 8 5 5 5 5 5 5 5 5 5 5 Average Capacity 5 | . 7 5 5 5 5 5 5 5 5 5 5 Most Carried 8 | . 8 5 5 5 5 5 5 5 5 5 5 Average Carried 5 | . 6 4 4 4 5 4 5 5 4 5 4 Final Capacity 8 | 8 5 5 5 5 5 5 5 5 5 5 5 Final Carried 6 | 6 5 5 4 5 5 5 5 5 5 5 4 Class Distribution -------------------- 36% | Hacker-Sprinter 35% | Hacker-Mutant 14% | Mutant 13% | Scavenger-Mutant Dominant Class ---------------- Mutant | -10/Materials Scavenger-Mutant | -9/Materials Scavenger-Mutant | -8/Materials Hacker-Sprinter | -7/Factory Hacker-Sprinter | -7/Lower Caves Hacker-Sprinter | -7/Lower Caves Hacker-Sprinter | -7/Data Miner Hacker-Sprinter | -6/Proximity Caves Hacker-Mutant | -6/Factory Hacker-Mutant | -6/Lower Caves Hacker-Mutant | -6/Lower Caves Resources | -11 -10 -9 -8 -7 -7 -7 -7 -6 -6 -6 -6 ----------- Run | Scr Mat Mat Mat Fac Low Low Dat Pro Fac Low Low Matter Collected 697 | 200 60 . 123 . 131 26 . 47 53 47 10 Remotely . | . . . . . . . . . . . . Salvage Created 423 | . 193 . 189 . . . . . . . 41 Parts 43 | . 16 . 23 . . . . . . . 4 Haulers Intercepted . | . . . . . . . . . . . . Recyclers Shooed . | . . . . . . . . . . . . Parts Field Recycled . | . . . . . . . . . . . . Retrieved Matter . | . . . . . . . . . . . . Parts Self-Destructed 5 | . . . . . 2 . . . . . 3 Prevented . | . . . . . . . . . . . . Kills | -11 -10 -9 -8 -7 -7 -7 -7 -6 -6 -6 -6 ------- Run | Scr Mat Mat Mat Fac Low Low Dat Pro Fac Low Low Combat Hostiles Destroyed 21 | . 8 . 11 . . . . . . . 2 Melee 1 | . . . . . . . . . . . 1 Guns 15 | . 8 . 6 . . . . . . . 1 Cannons 4 | . . . 4 . . . . . . . . AOE 1 | . . . 1 . . . . . . . . Classes Destroyed 3 | . 2 . 1 . . . . . . . . Worker 1 | . . . 1 . . . . . . . . Swarmer 18 | . 6 . 10 . . . . . . . 2 Grunt 3 | . 2 . 1 . . . . . . . . Best Kill Streak 6 | . 3 . 6 . . . . . . . 2 Combat Bots Only 5 | . 3 . 5 . . . . . . . 2 Max Kills in Single Turn 2 | . 1 . 2 . . . . . . . 1 Gunslinging . | . . . . . . . . . . . . Exploded 1 | . . . 1 . . . . . . . . Melee 1 | . . . . . . . . . . . 1 Uniques/NPCs Destroyed . | . . . . . . . . . . . . Combat | -11 -10 -9 -8 -7 -7 -7 -7 -6 -6 -6 -6 -------- Run | Scr Mat Mat Mat Fac Low Low Dat Pro Fac Low Low Damage Taken 2819 | . 246 85 620 . 16 114 . 442 84 284 928 Core 1218 | . 57 26 70 . 5 14 . 196 62 110 678 Absorbed by Shields . | . . . . . . . . . . . . Redirected to Shielding 14 | . . . . . 7 . . 7 . . . Core Remaining (%) 85 | 100 77 93 87 . . . . 69 . . . Volleys Fired 35 | . 16 . 14 . . . . . . . 5 Largest 2 | . 2 . 2 . . . . . . . 1 Hottest 90 | . 90 . 44 . . . . . . . 25 Shots Fired 61 | . 32 . 24 . . . . . . . 5 Gun 57 | . 32 . 20 . . . . . . . 5 Cannon 4 | . . . 4 . . . . . . . . Launcher . | . . . . . . . . . . . . Special . | . . . . . . . . . . . . Kinetic 41 | . 12 . 24 . . . . . . . 5 Thermal 10 | . 10 . . . . . . . . . . Explosive . | . . . . . . . . . . . . Electromagnetic 10 | . 10 . . . . . . . . . . Robot Hit Streak 6 | . 6 . 3 . . . . . . . 2 Robot Miss Streak 4 | . 4 . 3 . . . . . . . 4 Penetration Max . | . . . . . . . . . . . . Secondary Targets 2 | . 2 . . . . . . . . . . Max Gunslinging Chain 1 | . 1 . . . . . . . . . . Shots Hit Robots 36 | . 18 . 14 . . . . . . . 4 Core Hits 32 | . 11 . 18 . . . . . . . 3 Critical Kills . | . . . . . . . . . . . . Critical Parts Destroyed . | . . . . . . . . . . . . Critical Strikes . | . . . . . . . . . . . . Melee Attacks 5 | . . . . . . . . . . . 5 Impact 5 | . . . . . . . . . . . 5 Slashing . | . . . . . . . . . . . . Piercing . | . . . . . . . . . . . . Sneak Attacks . | . . . . . . . . . . . . Combat Hostiles . | . . . . . . . . . . . . Follow-up Attacks . | . . . . . . . . . . . . Damage Inflicted 533 | . 202 . 245 . . . . . . . 86 Guns 367 | . 200 . 99 . . . . . . . 68 Cannons 52 | . . . 52 . . . . . . . . Explosions 94 | . . . 94 . . . . . . . . Melee 18 | . . . . . . . . . . . 18 Ramming 2 | . 2 . . . . . . . . . . Kinetic 256 | . 37 . 151 . . . . . . . 68 Thermal 178 | . 84 . 94 . . . . . . . . Explosive . | . . . . . . . . . . . . Electromagnetic 79 | . 79 . . . . . . . . . . Impact 18 | . . . . . . . . . . . 18 Slashing . | . . . . . . . . . . . . Piercing . | . . . . . . . . . . . . Highest Corruption 1 | . 1 . . . . . . . . . . Average Corruption 1 | . 1 . . . . . . . . . . Corruption Purged . | . . . . . . . . . . . . Corruption Blocked . | . . . . . . . . . . . . Effects 2 | . 2 . . . . . . . . . . Message Errors 1 | . 1 . . . . . . . . . . Matter Fused 1 | . 1 . . . . . . . . . . Overload Shots . | . . . . . . . . . . . . Overflow Damage 85 | . . . 85 . . . . . . . . Projectiles . | . . . . . . . . . . . . Explosions 85 | . . . 85 . . . . . . . . Melee . | . . . . . . . . . . . . Knockbacks 1 | . . . 1 . . . . . . . . Impact . | . . . . . . . . . . . . Kinetic 1 | . . . 1 . . . . . . . . Secondary . | . . . . . . . . . . . . Self-Inflicted Damage 101 | . . . 101 . . . . . . . . Shots 1 | . . . 1 . . . . . . . . Rammed . | . . . . . . . . . . . . Targets Rammed 3 | . 3 . . . . . . . . . . Kicked 3 | . 3 . . . . . . . . . . Crushed . | . . . . . . . . . . . . Highest Temperature 120 | . 120 4 36 . 1 8 . 7 . . . Average Temperature 37 | . 56 3 9 . 1 5 . 5 . . . Received Heat Transfer 336 | . 15 33 72 . 6 45 . 117 42 . 6 Siege Activations . | . . . . . . . . . . . . Robots Corrupted . | . . . . . . . . . . . . Combat Hostiles . | . . . . . . . . . . . . Parts Fried . | . . . . . . . . . . . . Impact Corruptions . | . . . . . . . . . . . . Robots Melted . | . . . . . . . . . . . . Combat Hostiles . | . . . . . . . . . . . . Parts Melted . | . . . . . . . . . . . . Heat Transferred 359 | . 259 . 100 . . . . . . . . Parts Sabotaged . | . . . . . . . . . . . . Parts Stolen . | . . . . . . . . . . . . Parts Stripped . | . . . . . . . . . . . . Power Chain Reactions . | . . . . . . . . . . . . Missiles Intercepted . | . . . . . . . . . . . . Alert | -11 -10 -9 -8 -7 -7 -7 -7 -6 -6 -6 -6 ------- Run | Scr Mat Mat Mat Fac Low Low Dat Pro Fac Low Low Peak Influence 445 | . 190 179 445 236 . . . . 111 . . Initial 202 | . . 79 75 202 . . . . 81 . . Average 143 | . 89 116 229 213 . . . . 86 . . Maximum Alert Level 2 | . . . 2 1 . . . . . . . Low Security (%) 74 | . 100 100 47 . . . . . 100 . . Level 1 18 | . . . 30 100 . . . . . . . Level 2 6 | . . . 21 . . . . . . . . Level 3 . | . . . . . . . . . . . . Level 4 . | . . . . . . . . . . . . Level 5 . | . . . . . . . . . . . . High Security . | . . . . . . . . . . . . Max Security . | . . . . . . . . . . . . Squads Dispatched 1 | . . 1 . . . . . . . . . Investigation . | . . . . . . . . . . . . Extermination . | . . . . . . . . . . . . Reinforcement 1 | . . 1 . . . . . . . . . Assault . | . . . . . . . . . . . . Garrison . | . . . . . . . . . . . . Intercept . | . . . . . . . . . . . . Searches Triggered . | . . . . . . . . . . . . Construction Impeded . | . . . . . . . . . . . . Haulers Reinforced . | . . . . . . . . . . . . Active Scanning Responses . | . . . . . . . . . . . . Cargo Convoy Interrupts . | . . . . . . . . . . . . Stealth | -11 -10 -9 -8 -7 -7 -7 -7 -6 -6 -6 -6 --------- Run | Scr Mat Mat Mat Fac Low Low Dat Pro Fac Low Low Distress Signals 3 | . 1 . 2 . . . . . . . . Communications Jammed . | . . . . . . . . . . . . Distress Signals . | . . . . . . . . . . . . Times Spotted 93 | . 12 9 23 1 8 7 . 12 5 5 11 Peak Tracking Total 13 | . 4 10 13 1 6 7 . 9 5 5 6 Tactical Retreats 16 | . 1 1 2 . 3 2 . 4 1 . 2 Traps | -11 -10 -9 -8 -7 -7 -7 -7 -6 -6 -6 -6 ------- Run | Scr Mat Mat Mat Fac Low Low Dat Pro Fac Low Low Traps Triggered 3 | . . . . 3 . . . . . . . Indirectly . | . . . . . . . . . . . . Trap Hack Attempts . | . . . . . . . . . . . . Triggered . | . . . . . . . . . . . . Disarmed . | . . . . . . . . . . . . Reprogrammed . | . . . . . . . . . . . . Reused . | . . . . . . . . . . . . Traps Extracted . | . . . . . . . . . . . . Installed . | . . . . . . . . . . . . Triggered 1 | . . . . . 1 . . . . . . Machines | -11 -10 -9 -8 -7 -7 -7 -7 -6 -6 -6 -6 ---------- Run | Scr Mat Mat Mat Fac Low Low Dat Pro Fac Low Low Machines Disabled 3 | . 1 . 2 . . . . . . . . Max in Single Turn 2 | . 1 . 2 . . . . . . . . Machines Sabotaged . | . . . . . . . . . . . . Garrisons Compromised . | . . . . . . . . . . . . Overloaded Fab Kills . | . . . . . . . . . . . . Hacking | -11 -10 -9 -8 -7 -7 -7 -7 -6 -6 -6 -6 --------- Run | Scr Mat Mat Mat Fac Low Low Dat Pro Fac Low Low Machines Accessed 15 | . 4 1 3 3 . . 4 . . . . Terminals 10 | . 4 1 3 2 . . . . . . . Fabricators 1 | . . . . 1 . . . . . . . Repair Stations . | . . . . . . . . . . . . Recycling Units . | . . . . . . . . . . . . Scanalyzers . | . . . . . . . . . . . . Garrison Access . | . . . . . . . . . . . . Total Hacks 58 | . 11 3 9 6 . . 29 . . . . Successful 42 | . 8 1 2 2 . . 29 . . . . Failed 16 | . 3 2 7 4 . . . . . . . Catastrophic 4 | . . 1 1 2 . . . . . . . Database Lockouts . | . . . . . . . . . . . . Manual 8 | . 2 1 3 2 . . . . . . . Terminals 27 | . 11 3 9 4 . . . . . . . Fabricators 2 | . . . . 2 . . . . . . . Repair Stations . | . . . . . . . . . . . . Recycling Units . | . . . . . . . . . . . . Scanalyzers . | . . . . . . . . . . . . Garrison Access . | . . . . . . . . . . . . Terminal Hacks 41 | . 8 1 2 1 . . 29 . . . . Record 11 | . . . . . . . 11 . . . . Part Schematic 10 | . . . . . . . 10 . . . . Robot Schematic 5 | . . . . . . . 5 . . . . Prototype ID Bank 3 | . . . . . . . 3 . . . . Branch Access Points 2 | . 1 . . 1 . . . . . . . Emergency Access Points 2 | . 2 . . . . . . . . . . Unreport Threat 1 | . 1 . . . . . . . . . . Locate Traps 1 | . 1 . . . . . . . . . . Hauler Manifests 1 | . 1 . . . . . . . . . . Registered Components 1 | . . . 1 . . . . . . . . Zone Layout 4 | . 2 1 1 . . . . . . . . Fabricator Hacks 1 | . . . . 1 . . . . . . . Build 1 | . . . . 1 . . . . . . . Repair Station Hacks . | . . . . . . . . . . . . Recycling Unit Hacks . | . . . . . . . . . . . . Scanalyzer . | . . . . . . . . . . . . Garrison Access Hacks . | . . . . . . . . . . . . Unauthorized Hacks . | . . . . . . . . . . . . Terminals . | . . . . . . . . . . . . Fabricators . | . . . . . . . . . . . . Repair Stations . | . . . . . . . . . . . . Recycling Units . | . . . . . . . . . . . . Scanalyzers . | . . . . . . . . . . . . Garrison Access . | . . . . . . . . . . . . Data Cores Recovered . | . . . . . . . . . . . . Used . | . . . . . . . . . . . . Hacking Detections 8 | . 3 1 3 1 . . . . . . . Full Trace Events . | . . . . . . . . . . . . Feedback Events . | . . . . . . . . . . . . Feedback Blocked . | . . . . . . . . . . . . Robot Schematics Acquired 5 | . . . . . . . 5 . . . . Robots Built 1 | . . . . 1 . . . . . . . Authchips . | . . . . . . . . . . . . Time 40 | . . . . 40 . . . . . . . Total Robot Build Rating 1 | . . . . 1 . . . . . . . Part Schematics Acquired 10 | . . . . . . . 10 . . . . Parts Built . | . . . . . . . . . . . . Authchips . | . . . . . . . . . . . . Time . | . . . . . . . . . . . . Total Part Build Rating . | . . . . . . . . . . . . Parts Repaired . | . . . . . . . . . . . . Time . | . . . . . . . . . . . . Parts Recycled . | . . . . . . . . . . . . Recycled Matter . | . . . . . . . . . . . . Retrieved Matter . | . . . . . . . . . . . . Retrieved Components . | . . . . . . . . . . . . Parts Scanalyzed . | . . . . . . . . . . . . Part Schematics Acquired . | . . . . . . . . . . . . Parts Damaged . | . . . . . . . . . . . . Bothacking | -11 -10 -9 -8 -7 -7 -7 -7 -6 -6 -6 -6 ------------ Run | Scr Mat Mat Mat Fac Low Low Dat Pro Fac Low Low Used RIF Installer . | . . . . . . . . . . . . Robots Hacked . | . . . . . . . . . . . . Non-combat . | . . . . . . . . . . . . Combat . | . . . . . . . . . . . . Robot Hacks Applied . | . . . . . . . . . . . . Relay Couplers Released . | . . . . . . . . . . . . Fabnet Peak Effective % . | . . . . . . . . . . . . Robots Rewired . | . . . . . . . . . . . . Allies Hacked . | . . . . . . . . . . . . Hacks Repelled . | . . . . . . . . . . . . Allies | -11 -10 -9 -8 -7 -7 -7 -7 -6 -6 -6 -6 -------- Run | Scr Mat Mat Mat Fac Low Low Dat Pro Fac Low Low Total Allies 3 | . . . . 1 . . . 1 . . 1 Largest Group 1 | . . . . 1 . . . 1 . . 1 Highest-Rated Group 167 | . . . . 10 . . . 96 . . 167 Highest-Rated Ally 167 | . . . . 10 . . . 96 . . 167 Total Orders . | . . . . . . . . . . . . Ally Attacks 1 | . . . . . . . . 1 . . . Total Damage 50 | . . . . . . . . 50 . . . Kills . | . . . . . . . . . . . . Allies Corrupted . | . . . . . . . . . . . . Allies Melted 1 | . . . . . . . . 1 . . . Intel | -11 -10 -9 -8 -7 -7 -7 -7 -6 -6 -6 -6 ------- Run | Scr Mat Mat Mat Fac Low Low Dat Pro Fac Low Low Robot Analysis Total . | . . . . . . . . . . . . Derelict Logs Recovered 6 | . . . . . 3 2 . 1 . . . Drone Launches . | . . . . . . . . . . . . Drone Recoveries . | . . . . . . . . . . . . Exploration | -11 -10 -9 -8 -7 -7 -7 -7 -6 -6 -6 -6 ------------- Run | Scr Mat Mat Mat Fac Low Low Dat Pro Fac Low Low Turns Passed 1408 | . 222 52 213 73 189 60 23 146 177 169 84 Spaces Moved 2623 | 1 161 142 401 110 540 201 79 364 256 260 108 Core 241 | . . . . . . . . 149 6 . 86 Treads . | . . . . . . . . . . . . Legs 103 | 1 102 . . . . . . . . . . Wheels 19 | . . . . . . . . . 19 . . Hover 503 | . . . . . . . . . 231 260 12 Flight 1757 | . 59 142 401 110 540 201 79 215 . . 10 Fastest Speed 26 | 120 37 31 26 26 26 26 29 27 50 60 40 Average Speed 41 | 120 89 32 33 26 26 27 29 38 62 60 50 Slowest Speed 200 | 120 120 34 200 26 26 29 29 50 100 60 60 Overloaded Moves . | . . . . . . . . . . . . Propulsion Burnouts . | . . . . . . . . . . . . Robots Hopped 14 | . . 3 5 1 2 3 . . . . . Cave-ins Triggered . | . . . . . . . . . . . . Exploration Rate (%) 36 | 2 33 20 51 5 66 47 69 67 8 43 25 Regions Visited 11 Branch Regions 6 Pre-discovered Areas 2 | . . . . . . 1 1 . . . . Known Exits Taken 2 | . . . . 1 . . . . 1 . . Unknown Exits Taken 9 | 1 1 1 1 . 1 1 1 1 . 1 . Scrap Searched 8 | . . . . . 3 1 . 1 . 2 1 Spaces Dug . | . . . . . . . . . . . . Terrain Destroyed 31 | . . . 31 . . . . . . . . Melee . | . . . . . . . . . . . . Projectile . | . . . . . . . . . . . . AOE 31 | . . . 31 . . . . . . . . Terrain Rammed . | . . . . . . . . . . . . Walls Destroyed . | . . . . . . . . . . . . Machines Disabled . | . . . . . . . . . . . . Actions | -11 -10 -9 -8 -7 -7 -7 -7 -6 -6 -6 -6 --------- Run | Scr Mat Mat Mat Fac Low Low Dat Pro Fac Low Low Total 2860 | . 209 143 451 152 586 203 78 373 270 272 123 Wait 78 | . 8 . 8 . 46 . . 2 . 12 2 Move 2584 | . 160 135 390 107 535 194 78 363 255 259 108 Hop 14 | . . 3 5 1 2 3 . . . . . Pick Up 15 | . 4 2 4 1 . 2 . . 2 . . Fast Attach 34 | . 6 . 14 2 1 . . 2 6 1 2 Attach 13 | . 3 2 2 . . 2 . . 3 . 1 Detach 3 | . . . . 1 . . . . 2 . . Swap 6 | . . 1 4 . 1 . . . . . . Drop 31 | . 9 . 10 1 1 2 . 6 2 . . Fire 35 | . 16 . 14 . . . . . . . 5 Melee 5 | . . . . . . . . . . . 5 Ram . | . . . . . . . . . . . . Kick 3 | . 3 . . . . . . . . . . Crush . | . . . . . . . . . . . . Escape Stasis 39 | . . . . 39 . . . . . . . Rewire . | . . . . . . . . . . . . Trap . | . . . . . . . . . . . . Miscellaneous . | . . . . . . . . . . . . Route ------- -11/Scrapyard -10/Materials (discovered 2 exits: *Mat / Min) -9/Materials -8/Materials -7/Factory (discovered 3 exits: Sto / *Low x2) -7/Lower Caves -7/Lower Caves (discovered 2 exits: [*Fac] / *Dat) -7/Data Miner -6/Proximity Caves -6/Factory (discovered 2 exits: [*Fac] / *Low) -6/Lower Caves -6/Lower Caves History --------- Turn | Location | Event 1 | -11/Scrapyard | Discovered new exit (range 0) 1 | -11/Scrapyard | Entered Materials 50 | -10/Materials | Identified exit to Mines 220 | -10/Materials | Discovered new exit (range 8) 223 | -10/Materials | Entered another Materials area 223 | -9/Materials | Evolved 2 slots: Propulsion x2 271 | -9/Materials | Discovered new exit (range 15) 275 | -9/Materials | Entered another Materials area 275 | -8/Materials | Evolved 2 slots: Utility x2 417 | -8/Materials | Lost 4 parts (4n) 486 | -8/Materials | Discovered new exit (range 9) 488 | -8/Materials | Lost 5 parts (1p3n1u) 488 | -8/Materials | Entered Factory 488 | -7/Factory | Evolved 2 slots: Utility x2 541 | -7/Factory | Fabricated A-02 Transporter (x1) 552 | -7/Factory | Identified exit to Storage 552 | -7/Factory | Identified exit to Lower Caves 561 | -7/Factory | Entered Lower Caves 574 | -7/Lower Caves | Learned Factory trap positions 598 | -7/Lower Caves | Attracted the attention of an 0b10 outpost 699 | -7/Lower Caves | Build established: Hacker-Sprinter 731 | -7/Lower Caves | Learned Factory terminal intel 744 | -7/Lower Caves | Learned Factory stockpile data 746 | -7/Lower Caves | Discovered new exit (range 16) 750 | -7/Lower Caves | Attracted the attention of an 0b10 checkpoint 750 | -7/Lower Caves | Entered another Lower Caves area 752 | -7/Lower Caves | Learned location of 1 exit from Factory 752 | -7/Lower Caves | Discovered new exit (range 10) 804 | -7/Lower Caves | Discovered new exit (range 15) 810 | -7/Lower Caves | Entered Data Miner 810 | -7/Data Miner | Discovered new exit (range 6) 816 | -7/Data Miner | Met Data Miner 822 | -7/Data Miner | Learned location of Section 7 (-2) 822 | -7/Data Miner | Acquired the access code to Warlord's prototype stash 826 | -7/Data Miner | Received God Mode back door access code from Data Miner 833 | -7/Data Miner | Entered Proximity Caves 845 | -6/Proximity Caves | Spotted B-75 Beast 899 | -6/Proximity Caves | Attracted the attention of an 0b10 checkpoint 914 | -6/Proximity Caves | Learned Factory stockpile data 934 | -6/Proximity Caves | Lost 3 parts (3n) 970 | -6/Proximity Caves | Discovered new exit (range 14) 979 | -6/Proximity Caves | Entered Factory 979 | -6/Factory | Evolved 2 slots: Utility x2 980 | -6/Factory | Identified exit to Lower Caves 981 | -6/Factory | Loaded intel: 103 trap records 983 | -6/Factory | Loaded intel: 28 terminal locations 1156 | -6/Factory | Discovered new exit (range 10) 1156 | -6/Factory | Entered Lower Caves 1217 | -6/Lower Caves | Build established: Hacker-Mutant 1322 | -6/Lower Caves | Discovered new exit (range 6) 1325 | -6/Lower Caves | Entered another Lower Caves area 1358 | -6/Lower Caves | Core integrity fell below 50% 1381 | -6/Lower Caves | Core integrity fell below 20% 1409 | -6/Lower Caves | Destroyed by Y-54 Guardian with Flak Gun Last Messages --------------- 01346_ Imp. Gravmag System destroyed. 01348_ S-27 Virus destroyed. 01353_ Autogun fries itself beyond repair. 01357_ Acquired VTOL Module. 01357_ VTOL Module destroyed. 01358_ 18-LPU(k) breaks down the debris. 01360_ Hvy. Hammer destroyed. 01360_ SV-K70(k) breaks down the debris. 01361_ SV-K70(k) destroyed. 01363_ Weight Redist. System destroyed. A strange signal echoes through the caves. 01382_ Hacking Suite destroyed. 01402_ Searching scrap... 01402_ Found Coolant Injector. 01402_ Found Sml. Matter Pod. 01402_ Found Nuclear Pulse Thruster. 01402_ Found Bore Cannon. 01402_ Found 22 Matter. 01403_ Acquired Nuclear Pulse Thruster. 01405_ Acquired 10 matter. Map ----- +----------------------------------------------------+ | ?????????????????????????????????????????????????? | | ?????????????????????????????????????????????????? | | ?????????????????????????????????????????????????? | | ?????????????????????????????????????????????????? | | ?????????????????????????????????????????????????? | | ?????????????????????????????????????????????????? | | ?????????????????????????????????????????????????? | | ?????????????????????????????????????????????????? | | ?????????????????????????????????????????????????? | | ?????????????????????????????????????????????????? | | ?????????????????????????????????????????????????? | | ????????????????????? ??????????????????????????? | | ???????????????????? ?????????????????????????? | | ????????????????????# ?????????????????????????? | | ????????????????????# ?????????????????????????? | | ????????????????????# ?????????????????????????? | | ???????????????????? ##???????????????????????? | | ????????????????????? #??????????????????????? | | ?????????????????????# ##?????????????????????? | | ????????????# ??????## ##????????????????????? | | ???????????? ???## ?????????????????????? | | ???????????# ## ?????????????????????? | | ???????????# #?????????????????????? | | ???????????# ##????????????????????? | | ???????????# #????????????????????? | | ???????????# Y @ #????????????????????? | | ????????????# # #????????????????????? | | ????????????# # ## ###??????????????????? | | ????????????# ??# #?# # ??????????????????? | | ????????????# ?????##??# # ??????????????????? | | ????????????#????????????# # #??????????????????? | | ?????????????????????????# # #??????????????????? | | ?????????????????????????# # #????????????######? | | ????????????????????????##!!# ##???????????# ## | | ???????????????????????## ]%# ##??????????# # | | ???????????????????????# #####?????## | | ???????????????????????# ## ##???## # # | | ??????????????????????# ?# ##### # # | | ?????????????????????# ?# ## | | ???????????????????? ##? | | ?????????????????? ## ##### # #?? | | ???????????????? ### ### ##???# # #?? | | ??????????????? $ #??###?# #???? ##?? | | ??????????????? ???????# #??# # ?? | | ???????????????#### ????????# ##?# ? | | ??????????????????## ????????# ##?? # # ## | | ???????????????????##?????????## ##?? ? ######?## | | ???????????????????????????????###??##?##????????? | | ?????????????????????????????????????????????????? | | ?????????????????????????????????????????????????? | +----------------------------------------------------+ Best States ------------- Heat Dissipation 37 Energy Generation 18 Energy Capacity 160 Matter Stores 300 Matter Capacity 300 Sight Range 16 Robot Scan Range 14 Terrain Scan Density 10 Additional Mass Support 6 Armor Coverage 150 Weapon Shielding 66 Evasion (%) 64 Offensive Hacking 10 Defensive Hacking 30 Item Schematics ----------------- Combat Drone Bay | -7/Data Miner | Free Biomechanical Wings | -7/Data Miner | Free Lgt. Regenerative Plating | -7/Data Miner | Free Gui. EMP Blaster | -7/Data Miner | Free Exp. Propulsion Shielding | -7/Data Miner | Free Adv. Field Recycling Unit | -7/Data Miner | Free Hvy. Treads | -7/Data Miner | Free Enh. Gauss Cannon | -7/Data Miner | Free Imp. Kinecellerator | -7/Data Miner | Free Matter Neutralizer | -7/Data Miner | Free Robot Schematics ------------------ B-48 Gladiator | -7/Data Miner | Free M-28 Smith | -7/Data Miner | Free A-15 Conveyor | -7/Data Miner | Free S-27 Virus | -7/Data Miner | Free R-10 Processor | -7/Data Miner | Free Fabricated ------------ A-02 Transporter | x1 | -7/Factory | Preloaded Alien Tech Used ----------------- None Achievements -------------- None Challenges ------------ None Game ------ Seed TerrabombFusionTrap Manual? 0 Play Time 00:29:06 Cumulative 118.5 hours Start 2022.04.29 @ 17:39:52 End 2022.04.29 @ 18:07:33 Sessions 1 Manual Loads 0 Difficulty Rogue Special Mode None Game No. 149 Rogue 148 Adventurer 0 Explorer 1 Win Type - Total 2 Types 2/0/0/0/0/0/0/0/0 Lore% 57 Gallery% 56 Achievement% 46 Wizard Run 0 Options --------- ASCII 1 Keyboard 0 Movement Vi Keybinds 0 Fullscreen 1 Font 18/SmallcapsGlow Map View 76x50 Tactical HUD 1 Map Filters NONE Filters NONE Steam 1 RUN: 672dda68-5efd-4e2a-a205-0219cba9e970